bitfinex/quotes_ETHUSD_20241101
["timestamp","ask_amount","ask_price","bid_price","bid_amount"]
[1730494280010,3.96613,2521.4,2521.3,0.32267211]
[1730494282438,3.96613,2521.4,2521.3,0.12410466]
[1730494282813,3.96613,2521.4,2521.3,0.32267185]
[1730494283135,3.96613,2521.4,2521.0,3.96658]
[1730494283438,3.96613,2521.4,2521.1,0.32267483]
[1730494283649,3.96613,2521.4,2521.2,0.32267483]
[1730494283938,3.96613,2521.4,2521.3,0.1241057]
[1730494286161,0.8158,2521.3,2520.9,0.045]
[1730494286437,0.8229,2520.9,2520.5,0.05469736]
[1730494286607,0.8229,2520.9,2520.4,6.17079736]
[1730494286608,3.96692,2520.9,2520.4,6.17079736]
[1730494286810,3.96692,2520.9,2520.4,6.25014127]
[1730494287302,3.96668,2521.0,2520.5,3.96737]
[1730494287643,3.96668,2521.0,2520.4,10.13832736]
[1730494288301,0.8229,2521.3,2520.8,1.45158736]
[1730494288605,4.78918,2521.3,2520.9,0.7821]
[1730494288830,3.96628,2521.3,2520.9,0.7821]
[1730494289029,3.96599,2521.5,2520.9,4.7489]
[1730494289202,3.96612,2521.4,2520.9,4.7489]
[1730494289403,3.96612,2521.4,2520.9,0.7821]
[1730494289615,3.96624,2521.3,2520.9,0.7821]
[1730494290029,3.96624,2521.3,2520.9,4.74893]
[1730494290226,4.76811,2521.3,2520.9,3.96683]
[1730494290449,0.62120774,2521.7,2521.2,1.45158736]
[1730494290450,3.96584,2521.6,2521.2,1.45158736]
[1730494290660,3.96584,2521.6,2521.0,6.20035736]
[1730494291153,3.966,2521.5,2521.0,6.20035736]
[1730494292020,3.96605,2521.4,2521.0,6.20035736]
[1730494293621,3.96584,2521.6,2521.0,6.20035736]
[1730494293843,3.96591,2521.5,2521.0,7.31171388]
[1730494294865,3.96605,2521.4,2521.0,5.86012652]
[1730494295033,3.96605,2521.4,2521.0,4.74877]
[1730494295232,0.7995,2521.3,2520.6,6.17446736]
[1730494295432,3.96679,2521.0,2520.6,0.7556]
[1730494295650,3.96675,2521.0,2520.6,0.7556]
[1730494295962,3.96675,2521.0,2520.6,1.37305774]
[1730494295963,7.93355,2521.0,2520.6,1.37305774]
[1730494296319,3.96675,2521.0,2520.6,1.37305774]
[1730494296524,1.45158736,2521.0,2520.4,0.7821]
[1730494296731,3.96737,2520.6,2520.4,0.7821]
[1730494298141,3.96717,2520.7,2520.4,0.7821]
[1730494298769,3.96709,2520.8,2520.4,0.7821]
[1730494298944,3.96722,2520.7,2520.4,0.7821]
[1730494299273,3.96722,2520.7,2520.2,6.25257605]
[1730494299565,3.96737,2520.6,2520.2,6.17322736]
[1730494300448,3.96778,2520.3,2519.9,0.7821]
[1730494300637,3.96771,2520.4,2519.9,4.75043]
[1730494300851,3.96771,2520.4,2519.9,4.87458556]
[1730494301248,3.96771,2520.4,2519.9,4.75043]
[1730494301664,3.96786,2520.3,2519.9,0.7821]
[1730494301990,4.76526,2520.3,2519.9,0.7821]
[1730494302153,8.73318,2520.3,2519.9,0.7821]
[1730494302354,4.76526,2520.3,2519.9,0.7821]
[1730494303754,3.96786,2520.3,2519.9,4.7505]
[1730494304088,3.96763,2520.4,2519.9,4.7505]
[1730494304868,4.75685,2520.7,2520.0,5.41974736]
[1730494305171,3.9673,2520.6,2520.2,0.771]
[1730494306500,3.96747,2520.5,2520.2,0.771]
[1730494307199,7.93507,2520.5,2520.2,0.771]
[1730494307364,3.96762,2520.4,2520.2,0.771]
[1730494307565,3.96747,2520.5,2520.2,0.771]
[1730494307994,7.93507,2520.5,2520.2,0.771]
[1730494308327,3.96747,2520.5,2520.2,0.771]
[1730494308510,3.96763,2520.4,2520.2,0.771]
[1730494311676,3.96744,2520.6,2520.2,0.771]
[1730494311889,3.96741,2520.6,2520.2,0.771]
[1730494312103,3.9676,2520.5,2520.2,0.771]
[1730494312604,3.96762,2520.4,2520.2,0.771]
[1730494315859,7.93534,2520.4,2520.2,0.771]
[1730494316024,3.96762,2520.4,2520.0,0.7821]
[1730494316189,3.96762,2520.4,2520.0,4.75032]
[1730494316887,3.96762,2520.4,2520.0,8.71854]
[1730494317118,3.96762,2520.4,2520.0,4.75032]
[1730494318900,3.96762,2520.4,2520.0,4.75027]
[1730494319111,3.96762,2520.4,2520.0,8.71845]
[1730494319493,3.96762,2520.4,2520.0,4.75027]
[1730494319928,3.96762,2520.4,2520.0,8.84259747]
[1730494320132,3.96762,2520.4,2520.0,8.71844]
[1730494320330,3.96762,2520.4,2520.0,4.75027]
[1730494320542,3.96762,2520.4,2520.1,0.12415624]
[1730494321410,3.96762,2520.4,2520.1,0.24831221]
[1730494321614,3.96741,2520.6,2520.1,0.24831221]
[1730494321838,3.96749,2520.5,2520.1,4.21640221]
[1730494322347,3.96749,2520.5,2520.1,4.09224624]
[1730494322550,3.96749,2520.5,2520.1,4.09224506]
[1730494322851,3.96749,2520.5,2520.1,3.96809]
[1730494323229,3.96749,2520.5,2520.2,0.12415388]
[1730494323442,3.96763,2520.4,2520.1,0.12415388]
[1730494323755,3.96763,2520.4,2520.0,8.71846]
[1730494323928,3.96763,2520.4,2520.1,0.12415614]
[1730494324129,3.96749,2520.5,2520.1,0.12415613]
[1730494324341,3.96749,2520.5,2520.2,0.12415613]
[1730494325921,3.96749,2520.5,2520.1,0.12415613]
[1730494326120,3.96749,2520.5,2520.1,3.96799]
[1730494326359,3.96727,2520.7,2520.4,0.7821]
[1730494327458,3.96696,2520.9,2520.5,3.96746]
[1730494327660,3.96696,2520.9,2520.5,7.93486]
[1730494327959,3.96696,2520.9,2520.5,3.9674]
[1730494328363,3.96674,2521.0,2520.5,3.9674]
[1730494328661,3.96674,2521.0,2520.6,0.7821]
[1730494329764,3.96685,2520.9,2520.6,0.7821]
[1730494330121,3.96685,2520.9,2520.6,0.90623531]
[1730494330327,3.96685,2520.9,2520.6,0.7821]
[1730494330736,3.96702,2520.8,2520.6,0.7821]
[1730494333043,3.96699,2520.8,2520.6,0.7821]
[1730494337135,3.96699,2520.8,2520.7,0.12413729]
[1730494337776,3.96699,2520.8,2520.6,0.65623729]
[1730494341111,1.45158736,2521.2,2520.6,2.10782465]
[1730494341112,3.96642,2521.2,2520.6,2.10782465]
[1730494341316,3.96658,2521.1,2520.7,0.21078247]
[1730494341517,3.9667,2521.0,2520.7,0.19860782]
[1730494341813,3.9667,2521.0,2520.6,0.65623729]
[1730494341982,3.9667,2521.0,2520.7,0.19861345]
[1730494342323,3.96696,2520.9,2520.5,0.24825978]
[1730494342525,3.96721,2520.7,2520.5,0.24825978]
[1730494342677,3.96721,2520.7,2520.6,0.19861932]
[1730494342886,4.76063,2520.7,2520.6,0.19861932]
[1730494343097,4.76063,2520.7,2520.4,0.6563]
[1730494343308,3.96721,2520.7,2520.5,0.19863108]
[1730494343483,3.9673,2520.6,2520.3,0.24828932]
[1730494343683,3.9673,2520.6,2520.4,0.19863709]
[1730494343884,3.9673,2520.6,2520.5,0.19863709]
[1730494346891,4.80008,2520.7,2520.5,0.19863709]
[1730494347090,3.96706,2520.8,2520.6,0.19862589]
[1730494347291,3.96706,2520.8,2520.5,0.6563]
[1730494347496,3.96706,2520.8,2520.6,0.19862466]
[1730494347719,3.96706,2520.8,2520.5,0.6563]
[1730494347919,3.96706,2520.8,2520.6,0.19862719]
[1730494348120,3.96706,2520.8,2520.5,0.6563]
[1730494348321,3.96706,2520.8,2520.6,0.19862701]
[1730494348522,3.96706,2520.8,2520.5,0.6563]
[1730494348724,3.96706,2520.8,2520.6,0.19862774]
[1730494348898,3.96706,2520.8,2520.5,0.6563]
[1730494349098,3.96706,2520.8,2520.6,0.19862715]
[1730494349303,3.96706,2520.8,2520.5,0.6563]
[1730494349617,3.96706,2520.8,2520.6,0.19862807]
[1730494349828,3.96706,2520.8,2520.5,0.6563]
[1730494349991,3.96706,2520.8,2520.6,0.12414272]
[1730494350299,4.97026639,2520.8,2520.7,0.12414272]
[1730494353990,4.97026639,2520.8,2520.7,0.12414201]
[1730494355226,5.73206639,2520.8,2520.7,0.12414201]
[1730494356245,7.18365375,2520.8,2520.7,0.12414201]
[1730494356391,7.18365375,2520.8,2519.9,4.79493844]
[1730494356392,0.8101,2520.3,2520.2,0.19865854]
[1730494356592,4.77788,2520.3,2520.2,0.32282578]
[1730494356903,4.77788,2520.3,2520.2,0.12416724]
[1730494357256,4.77788,2520.3,2519.9,0.6563]
[1730494357438,4.77788,2520.3,2520.2,0.12417047]
[1730494357645,3.96807,2520.2,2519.8,0.24833844]
[1730494357935,3.96793,2520.2,2519.9,0.32284099]
[1730494358143,3.96793,2520.2,2520.0,0.32284099]
[1730494358431,3.96793,2520.2,2519.7,4.62491]
[1730494358432,3.96793,2520.2,2520.1,0.12416961]
[1730494359226,5.79761974,2520.3,2520.1,0.12416961]
[1730494359429,5.79761974,2520.3,2520.2,0.12416961]
[1730494360906,5.79761974,2520.3,2519.7,8.59357]
[1730494361149,4.77788,2520.3,2519.8,0.57117625]
[1730494361361,4.77788,2520.3,2519.9,0.32283875]
[1730494361562,4.77788,2520.3,2520.0,0.32283875]
[1730494361761,4.77788,2520.3,2520.1,0.12416875]
[1730494361933,4.77788,2520.3,2520.2,0.12416875]
[1730494362138,5.652433,2520.3,2520.2,0.12416875]
[1730494362382,5.652433,2520.3,2519.8,3.96856]
[1730494362550,4.77788,2520.3,2519.9,0.12416627]
[1730494362869,4.77788,2520.3,2520.0,0.1341283]
[1730494363079,4.77788,2520.3,2520.1,0.12416627]
[1730494363239,4.77788,2520.3,2520.2,0.12416627]
[1730494364173,5.652433,2520.3,2520.2,0.12416826]
[1730494364384,3.96801,2520.2,2519.7,4.87332254]
[1730494364583,3.96801,2520.2,2519.8,0.12416786]
[1730494364789,3.96801,2520.2,2519.7,4.87332254]
[1730494364790,3.96801,2520.2,2519.9,0.12416786]
[1730494364996,3.96801,2520.2,2520.0,0.12416786]
[1730494365150,3.96801,2520.2,2519.7,4.62499]
[1730494365351,3.96801,2520.2,2520.0,0.12417103]
[1730494365659,3.96801,2520.2,2520.1,0.12417097]
[1730494366371,5.652433,2520.3,2520.1,0.12417097]
[1730494366695,5.652433,2520.3,2519.7,4.62494]
[1730494366696,9.620363,2520.3,2519.7,4.62494]
[1730494366856,8.74581,2520.3,2519.8,0.12416919]
[1730494367194,3.96802,2520.2,2519.9,0.12416815]
[1730494367397,4.77795,2520.3,2520.0,0.12416815]
[1730494367691,4.77795,2520.3,2520.1,0.12416815]
[1730494367877,4.77795,2520.3,2519.8,3.96855]
[1730494368053,3.96785,2520.3,2519.9,0.12416826]
[1730494368260,3.96785,2520.3,2520.0,0.78046826]
[1730494368570,3.96785,2520.3,2520.1,0.12416826]
[1730494368766,3.96785,2520.3,2520.0,0.6563]
[1730494368965,3.96785,2520.3,2520.1,0.12416434]
[1730494369164,3.96785,2520.3,2520.0,0.6563]
[1730494369392,3.96785,2520.3,2520.1,0.12416463]
[1730494369593,3.96785,2520.3,2520.2,0.12416463]
[1730494370677,3.96785,2520.3,2520.0,0.6563]
[1730494370869,3.96785,2520.3,2520.1,0.12416556]
[1730494371069,3.96785,2520.3,2520.0,0.6563]
[1730494371271,3.96785,2520.3,2520.1,0.12416488]
[1730494371472,3.96785,2520.3,2520.0,0.6563]
[1730494371682,3.96785,2520.3,2520.1,0.12416625]
[1730494371883,3.96785,2520.3,2520.0,0.6563]
[1730494372069,3.96785,2520.3,2520.1,0.12416616]
[1730494372276,3.96785,2520.3,2520.0,0.6563]
[1730494372480,3.96785,2520.3,2520.1,0.12416488]
[1730494372682,3.96785,2520.3,2520.0,0.6563]
[1730494372902,3.96785,2520.3,2520.1,0.12416625]
[1730494373196,3.96785,2520.3,2520.0,0.6563]
[1730494373382,3.96785,2520.3,2520.1,0.12416671]
[1730494373699,3.96785,2520.3,2520.0,0.6563]
[1730494373893,3.96785,2520.3,2520.1,0.12416703]
[1730494374193,3.96785,2520.3,2520.0,0.6563]
[1730494374501,3.96785,2520.3,2520.1,0.12416676]
[1730494374800,3.96785,2520.3,2520.0,0.6563]
[1730494375088,3.96785,2520.3,2520.1,0.12416695]
[1730494375300,4.837245,2520.3,2520.0,0.6563]
[1730494375484,4.837245,2520.3,2520.1,0.1241675]
[1730494375794,4.837245,2520.3,2520.0,0.6563]
[1730494375967,4.837245,2520.3,2520.1,0.12416837]
[1730494376175,4.837245,2520.3,2520.0,0.6563]
[1730494376496,4.837245,2520.3,2520.1,0.12416757]
[1730494376691,4.837245,2520.3,2520.0,0.6563]
[1730494376899,4.837245,2520.3,2520.1,0.12416754]
[1730494377201,4.837245,2520.3,2520.0,0.6563]
[1730494377496,4.837245,2520.3,2520.1,0.12416755]
[1730494377660,4.837245,2520.3,2520.0,0.6563]
[1730494377996,4.837245,2520.3,2520.1,0.12416755]
[1730494378183,4.837245,2520.3,2520.0,0.6563]
[1730494378385,4.837245,2520.3,2520.1,0.12416754]
[1730494378706,4.837245,2520.3,2520.0,0.6563]
[1730494379002,4.837245,2520.3,2520.1,0.12416643]
[1730494379168,4.837245,2520.3,2520.0,0.6563]
[1730494379375,4.837245,2520.3,2520.1,0.12416705]
[1730494379586,4.837245,2520.3,2520.0,0.6563]
[1730494379898,3.96765,2520.4,2520.1,0.12416754]
[1730494380100,0.7585,2520.5,2520.2,0.12416754]
[1730494380305,3.96768,2520.4,2520.0,0.85496725]
[1730494380600,3.96768,2520.4,2520.1,0.12415942]
[1730494380755,3.96768,2520.4,2520.0,0.6563]
[1730494380960,3.96768,2520.4,2520.1,0.12416291]
[1730494381294,4.91608034,2520.4,2520.2,0.12416227]
[1730494381463,4.91608034,2520.4,2520.0,0.85496066]
[1730494381659,4.91608034,2520.4,2520.1,0.12416282]
[1730494381860,4.91608034,2520.4,2520.0,0.85496066]
[1730494382078,4.91608034,2520.4,2520.1,0.12416322]
[1730494382366,4.91608034,2520.4,2520.2,0.12416322]
[1730494382671,4.91608034,2520.4,2520.0,0.85496066]
[1730494382888,4.91608034,2520.4,2520.1,0.12416251]
[1730494383097,4.91608034,2520.4,2520.2,0.12416251]
[1730494383296,4.91608034,2520.4,2520.0,0.6563]
[1730494383593,3.96768,2520.4,2520.1,0.12416181]
[1730494383819,3.96768,2520.4,2520.2,0.12416181]
[1730494383961,3.96768,2520.4,2520.0,0.6563]
[1730494384164,3.96768,2520.4,2520.1,0.12416013]
[1730494384392,3.96768,2520.4,2520.2,0.12416013]
[1730494384703,3.96768,2520.4,2520.0,0.6563]
[1730494384870,3.96768,2520.4,2520.1,0.12416005]
[1730494385057,3.96768,2520.4,2520.2,0.12416005]
[1730494385261,3.96768,2520.4,2520.0,0.6563]
[1730494385483,3.96768,2520.4,2520.1,0.124162]
[1730494385685,3.96768,2520.4,2520.2,0.124162]
[1730494385902,3.96768,2520.4,2520.0,0.6563]
[1730494386102,3.96768,2520.4,2520.1,0.12416094]
[1730494386264,3.96768,2520.4,2520.2,0.12416094]
[1730494386467,3.96768,2520.4,2520.0,0.6563]
[1730494386889,3.96768,2520.4,2520.1,0.12416146]
[1730494387208,3.96768,2520.4,2520.2,0.12416146]
[1730494387387,3.96768,2520.4,2520.0,0.6563]
[1730494387594,3.96768,2520.4,2520.1,0.32281722]
[1730494387809,3.96768,2520.4,2520.2,0.12416047]
[1730494387965,3.96768,2520.4,2520.0,0.6563]
[1730494388305,3.96768,2520.4,2520.1,0.3228187]
[1730494388603,3.96768,2520.4,2520.2,0.12416104]
[1730494388806,3.96768,2520.4,2520.3,0.12416104]
[1730494388995,4.837052,2520.4,2520.3,0.12416104]
[1730494389806,4.837052,2520.4,2520.0,0.6563]
[1730494390009,4.837052,2520.4,2520.3,0.12416165]
[1730494390166,4.837052,2520.4,2520.1,0.32282085]
[1730494390508,4.837052,2520.4,2520.2,0.12416165]
[1730494390805,4.837052,2520.4,2520.3,0.12416165]
[1730494393878,3.96785,2520.3,2520.0,0.6563]
[1730494394121,3.96785,2520.3,2520.1,0.12416639]
[1730494394274,3.96785,2520.3,2520.2,0.12416639]
[1730494394473,5.7545902,2520.3,2520.2,0.12416639]
[1730494397317,5.7545902,2520.3,2519.8,0.24834028]
[1730494397519,3.96817,2520.1,2519.8,0.24834609]
[1730494397707,3.96817,2520.1,2519.9,0.19867693]
[1730494397913,3.96817,2520.1,2520.0,0.32284107]
[1730494401024,3.96817,2520.1,2519.7,4.625]
[1730494401221,3.96817,2520.1,2519.8,0.57119081]
[1730494401422,3.96796,2520.2,2519.9,0.57119081]
[1730494401620,3.96796,2520.2,2520.0,0.32284744]
[1730494401825,7.93605,2520.2,2520.1,0.32284744]
[1730494402027,8.90832902,2520.2,2520.1,0.32284744]
[1730494403420,8.90832902,2520.2,2520.1,0.12417209]
[1730494403421,9.71232902,2520.2,2520.1,0.12417209]
[1730494404921,9.71232902,2520.2,2519.4,1.03064629]
[1730494404922,3.96879,2519.7,2519.4,1.03064629]
[1730494405179,3.96888,2519.6,2519.5,0.3071177]
[1730494405459,3.96888,2519.6,2519.5,0.57126469]
[1730494405664,3.96888,2519.6,2519.5,0.32288117]
[1730494406721,4.9868417,2519.6,2519.5,0.32288117]
[1730494407322,4.9868417,2519.6,2519.5,0.12418989]
[1730494408522,4.9868417,2519.6,2519.2,0.24840012]
[1730494408523,4.9868417,2519.6,2519.1,4.62594]
[1730494408723,5.7408417,2519.6,2519.2,0.57131326]
[1730494408959,5.7408417,2519.6,2519.3,0.12419929]
[1730494409158,3.96904,2519.5,2519.4,0.12419929]
[1730494410061,1.7719617,2519.6,2519.4,0.12419929]
[1730494410268,4.72295,2519.6,2519.5,0.12419929]
[1730494410832,4.72295,2519.6,2519.2,3.96942]
[1730494411075,4.72295,2519.6,2519.3,0.32291005]
[1730494411232,3.96895,2519.6,2519.4,0.12419617]
[1730494411433,3.9688,2519.7,2519.5,0.12419794]
[1730494411633,0.754,2519.8,2519.4,4.62545]
[1730494411634,4.72257,2519.8,2519.4,4.62545]
[1730494411859,4.72257,2519.8,2519.5,0.12419427]
[1730494411860,3.96857,2519.8,2519.5,0.12419427]
[1730494412182,0.754,2520.0,2519.4,4.62545]
[1730494412463,3.96843,2519.9,2519.5,0.1241896]
[1730494412664,3.96865,2519.8,2519.5,0.1241896]
[1730494412967,3.96865,2519.8,2519.6,0.12419084]
[1730494413272,3.96865,2519.8,2519.4,0.6563]
[1730494413458,3.96865,2519.8,2519.5,0.12419086]
[1730494413633,3.96865,2519.8,2519.6,0.12419086]
[1730494413960,3.96865,2519.8,2519.4,4.82418533]
[1730494414165,3.96865,2519.8,2519.5,0.12418984]
[1730494414366,3.96865,2519.8,2519.4,4.62548]
[1730494414563,3.96865,2519.8,2519.5,0.12419155]
[1730494414771,3.96859,2519.8,2519.4,0.6563]
[1730494414963,3.96873,2519.7,2519.5,0.12419095]
[1730494415264,7.93729,2519.8,2519.4,0.6563]
[1730494415468,7.93724,2519.8,2519.5,0.12419619]
[1730494415670,3.96859,2519.8,2519.4,0.6563]
[1730494415870,3.96859,2519.8,2519.5,0.12419487]
[1730494416031,7.93724,2519.8,2519.4,0.6563]
[1730494416228,3.96872,2519.7,2519.5,0.12419486]
[1730494416432,3.96872,2519.7,2519.4,0.46731]
[1730494416676,3.96872,2519.7,2519.5,0.12419534]
[1730494416880,3.96872,2519.7,2519.2,4.16818758]
[1730494417178,0.7772,2519.7,2519.3,0.32290325]
[1730494417365,3.96895,2519.6,2519.4,0.12419567]
[1730494417571,3.96895,2519.6,2519.3,0.19870758]
[1730494417743,3.96895,2519.6,2519.4,0.12419708]
[1730494418073,3.96895,2519.6,2519.2,3.96948]
[1730494418240,3.96895,2519.6,2519.3,0.12419719]
[1730494418443,3.96895,2519.6,2519.4,0.12419719]
[1730494418641,3.96895,2519.6,2519.2,3.96948]
[1730494418862,3.96895,2519.6,2519.3,0.12419718]
[1730494419063,3.96895,2519.6,2519.4,0.12419718]
[1730494419477,3.96895,2519.6,2519.4,0.12419716]
[1730494419888,3.96895,2519.6,2519.4,0.12420227]
[1730494420086,3.96895,2519.6,2519.2,4.63550363]
[1730494420260,3.96895,2519.6,2519.3,0.12419955]
[1730494420589,3.96895,2519.6,2519.4,0.12419955]
[1730494420885,3.96895,2519.6,2519.2,4.43678]
[1730494421047,3.96895,2519.6,2519.3,0.12419836]
[1730494421250,3.96895,2519.6,2519.4,0.12419836]
[1730494421486,3.96895,2519.6,2519.2,4.63550363]
[1730494421646,3.96895,2519.6,2519.3,0.1241982]
[1730494421984,3.96895,2519.6,2519.4,0.1241982]
[1730494422146,3.96895,2519.6,2519.2,4.43678]
[1730494422785,4.74595,2519.7,2519.2,8.40623]
[1730494423078,4.74595,2519.7,2519.2,9.246853]
[1730494424285,4.74595,2519.7,2519.2,8.40623]
[1730494425050,3.96875,2519.7,2519.3,3.96934]
[1730494425683,3.96875,2519.7,2519.4,0.12419545]
[1730494425881,3.96875,2519.7,2519.5,0.12419545]
[1730494426049,3.96875,2519.7,2519.3,3.96934]
[1730494426249,3.96875,2519.7,2519.4,0.12419398]
[1730494426477,3.96875,2519.7,2519.3,3.96934]
[1730494426779,3.96875,2519.7,2519.4,0.12419319]
[1730494426983,3.96875,2519.7,2519.3,3.90508319]
[1730494430887,3.96875,2519.7,2519.3,4.10379436]
[1730494431111,3.96875,2519.7,2519.3,3.90508319]
[1730494431585,3.96875,2519.7,2519.3,4.10379436]
[1730494432245,3.96875,2519.7,2519.3,3.90508319]
[1730494432445,3.96875,2519.7,2519.3,4.10379436]
[1730494432985,3.96875,2519.7,2519.2,0.66601117]
[1730494433189,3.96856,2519.8,2519.2,4.63540117]
[1730494433385,3.96879,2519.7,2519.2,4.63540117]
[1730494433694,3.96879,2519.7,2519.3,0.19871283]
[1730494434053,3.96879,2519.7,2519.3,3.96935]
[1730494434254,3.96879,2519.7,2519.3,4.1680629]
[1730494435189,3.9689,2519.6,2519.3,0.1987129]
[1730494435489,0.75,2519.6,2519.3,4.16804371]
[1730494435889,0.75,2519.6,2519.3,0.19871371]
[1730494436226,0.75,2519.6,2519.3,3.96934]
[1730494436430,0.75,2519.6,2519.3,4.16805629]
[1730494436591,0.75,2519.6,2519.3,4.16805889]
[1730494436933,0.75,2519.6,2519.2,3.96943]
[1730494437221,0.75,2519.6,2519.3,4.83405872]
[1730494437420,0.75,2519.6,2519.3,4.63534945]
[1730494438904,0.75,2519.6,2519.4,0.12419679]
[1730494439117,0.75,2519.6,2519.5,0.12419679]
[1730494440126,4.7828,2519.8,2519.5,0.12419679]
[1730494440435,5.8032327,2519.8,2519.6,0.12419679]
[1730494440632,5.8032327,2519.8,2519.3,4.63534945]
[1730494440809,5.8032327,2519.8,2519.4,0.19870674]
[1730494441131,5.8032327,2519.8,2519.5,0.12419128]
[1730494441305,5.8032327,2519.8,2519.6,0.12419128]
[1730494441512,5.8032327,2519.8,2519.4,0.19870626]
[1730494441704,5.8032327,2519.8,2519.5,0.12419147]
[1730494441903,5.8032327,2519.8,2519.6,0.12419147]
[1730494442103,5.8032327,2519.8,2519.4,0.19870643]
[1730494442327,5.8032327,2519.8,2519.5,0.12419278]
[1730494442493,5.8032327,2519.8,2519.6,0.12419278]
[1730494442693,5.8032327,2519.8,2519.4,0.19870825]
[1730494443010,5.8032327,2519.8,2519.5,0.32290097]
[1730494443191,5.8032327,2519.8,2519.6,0.12419261]
[1730494443388,5.8032327,2519.8,2519.3,4.63534945]
[1730494443389,5.8032327,2519.8,2519.7,0.12419261]
[1730494443592,5.8032327,2519.8,2519.3,4.63534945]
[1730494443807,5.8032327,2519.8,2519.4,0.32291007]
[1730494444007,5.8032327,2519.8,2519.3,4.63534945]
[1730494444244,5.8032327,2519.8,2519.4,0.19871487]
[1730494444451,5.8032327,2519.8,2519.3,4.63534945]
[1730494444651,5.8032327,2519.8,2519.4,0.32291167]
[1730494444953,5.8032327,2519.8,2519.5,0.32291167]
[1730494445245,5.8032327,2519.8,2519.6,0.12419679]
[1730494445445,1.12247597,2519.7,2519.3,4.63534945]
[1730494445644,4.7828,2519.8,2519.4,0.32290646]
[1730494445844,4.7828,2519.8,2519.5,0.32290646]
[1730494446021,4.7828,2519.8,2519.6,0.12419479]
[1730494446220,4.7828,2519.8,2519.7,0.12419479]
[1730494446430,5.8032327,2519.8,2519.7,0.12419479]
[1730494448550,3.96848,2519.9,2519.7,0.3228984]
[1730494448748,3.96848,2519.9,2519.8,0.12419479]
[1730494450216,3.96848,2519.9,2519.8,0.3228947]
[1730494452890,3.96848,2519.9,2519.8,0.12419479]
[1730494454998,3.96848,2519.9,2519.4,3.9691]
[1730494454999,3.96859,2519.8,2519.4,3.9691]
[1730494455200,3.96859,2519.8,2519.6,0.24838221]
[1730494455378,4.838457,2519.8,2519.5,0.19870591]
[1730494455574,4.838457,2519.8,2519.7,0.32289692]
[1730494455774,4.838457,2519.8,2519.7,0.1987058]
[1730494456009,4.838457,2519.8,2519.7,0.32289692]
[1730494458509,5.601957,2519.8,2519.7,0.12419112]
[1730494458740,5.601957,2519.8,2519.7,0.3229135]
[1730494459212,5.601957,2519.8,2519.7,0.1241975]
[1730494461691,5.601957,2519.8,2519.7,0.32291966]
[1730494462523,5.601957,2519.8,2519.7,0.32291181]
[1730494462711,4.838457,2519.8,2519.7,0.32291181]
[1730494463495,5.670857,2519.8,2519.7,0.32291181]
[1730494463692,5.670857,2519.8,2519.7,0.12419685]
[1730494464914,5.670857,2519.8,2519.7,0.32291394]
[1730494465096,5.670857,2519.8,2519.7,0.12419685]
[1730494470160,3.96937,2519.3,2519.1,0.24842512]
[1730494470345,3.96937,2519.3,2518.8,3.83178951]
[1730494470346,1.45299698,2519.3,2518.8,1.29908951]
[1730494470656,5.42234698,2519.3,2519.2,0.24842634]
[1730494470821,5.64333668,2519.3,2519.2,0.32295424]
[1730494471354,4.1903397,2519.3,2519.2,0.32295424]
[1730494471555,3.96935,2519.3,2519.2,0.32295424]
[1730494472071,3.96935,2519.3,2519.2,0.57137914]
[1730494472220,3.96935,2519.3,2519.2,0.32295424]
[1730494481440,3.96935,2519.3,2519.1,0.4673]
[1730494481631,3.96935,2519.3,2519.2,0.32295164]
[1730494483073,3.9691,2519.5,2519.2,0.32295164]
[1730494483365,3.9691,2519.5,2519.3,0.32295164]
[1730494483572,3.9691,2519.5,2519.4,0.12421217]
[1730494483729,3.9691,2519.5,2519.4,0.32294235]
[1730494484465,3.96896,2519.6,2519.4,0.32294235]
[1730494484665,3.96896,2519.6,2519.1,4.43695]
[1730494484666,3.96896,2519.6,2519.5,0.12421217]
[1730494484966,3.96896,2519.6,2519.5,0.32293346]
[1730494485155,3.96896,2519.6,2519.5,0.12421217]
[1730494485352,3.96896,2519.6,2519.2,3.96945]
[1730494485555,3.96896,2519.6,2519.3,0.57132451]
[1730494486129,3.96896,2519.6,2519.2,3.96945]
[1730494487629,3.96896,2519.6,2519.3,0.57132701]
[1730494487829,6.18203698,2519.5,2519.4,0.32292396]
[1730494488054,6.18203698,2519.5,2519.4,0.12420152]
[1730494490879,3.96956,2519.2,2518.9,0.2484287]
[1730494491175,3.96956,2519.2,2519.0,0.57139005]
[1730494491176,6.20126698,2519.1,2519.0,0.57139005]
[1730494491331,6.59822298,2519.1,2519.0,0.57140683]
[1730494491536,6.59822298,2519.1,2519.0,0.1242159]
[1730494494281,3.97014,2518.8,2518.5,0.24846825]
[1730494494575,3.97014,2518.8,2518.4,0.1231182]
[1730494494779,3.97031,2518.7,2518.5,0.32302435]
[1730494495077,3.97031,2518.7,2518.4,0.1231182]
[1730494495078,3.97031,2518.7,2518.6,0.32302435]
[1730494496059,3.97031,2518.7,2518.4,0.1231182]
[1730494497146,3.97031,2518.7,2518.5,0.32302286]
[1730494497350,3.97014,2518.8,2518.6,0.1987833]
[1730494497566,3.97014,2518.8,2518.7,0.19878152]
[1730494497785,3.97014,2518.8,2518.7,0.32302108]
[1730494497960,3.97014,2518.8,2518.7,0.12423956]
[1730494498350,3.96998,2518.9,2518.7,0.12423956]
[1730494498560,3.96998,2518.9,2518.8,0.12423956]
[1730494498883,3.96987,2519.0,2518.8,0.32300696]
[1730494499059,3.96987,2519.0,2518.9,0.12423956]
[1730494501147,3.96975,2519.1,2518.9,0.79030636]
[1730494501385,3.96972,2519.1,2519.0,0.12423956]
[1730494501560,3.96951,2519.2,2518.9,0.4673]
[1730494501760,7.93917,2519.2,2519.0,0.12422628]
[1730494501963,7.93917,2519.2,2519.1,0.12422375]
[1730494502501,7.93917,2519.2,2519.1,0.12422427]
[1730494502847,7.93917,2519.2,2518.9,0.4673]
[1730494503043,7.93917,2519.2,2519.0,0.12422416]
[1730494503385,7.93917,2519.2,2518.9,0.4673]
[1730494503386,3.96973,2519.1,2518.9,0.4673]